[Event "Early-Titled-Tuesday-Blitz-June-18-2024"]
[Site "Chess.com"]
[Date "2024.06.18"]
[Round "7"]
[White "Vladimir_Zakhartsov"]
[Black "KubaGepard"]
[Result "0-1"]
[WhiteElo "2890"]
[BlackElo "2652"]
[TimeControl "180+1"]
[EndTime "9:21:01 PDT"]
[Termination "KubaGepard won by resignation"]

1. Nf3 {[%clk 0:02:26.4]} 1... d5 {[%clk 0:02:59.6]} 2. e3 {[%clk 0:02:26.3]}
2... Nf6 {[%clk 0:02:59.3]} 3. c4 {[%clk 0:02:26.7]} 3... dxc4 {[%clk
0:03:00.2]} 4. Bxc4 {[%clk 0:02:26.6]} 4... c5 {[%clk 0:03:01.1]} 5. b3 {[%clk
0:02:25.9]} 5... Nc6 {[%clk 0:03:01.2]} 6. Bb2 {[%clk 0:02:26.1]} 6... g6 {[%clk
0:02:59.2]} 7. Ng5 {[%clk 0:02:24.1]} 7... e6 {[%clk 0:02:38.1]} 8. Ne4 {[%clk
0:02:04.3]} 8... Be7 {[%clk 0:02:23.3]} 9. Qf3 {[%clk 0:02:00.4]} 9... e5 {[%clk
0:02:19.4]} 10. Nxf6+ {[%clk 0:01:55.8]} 10... Bxf6 {[%clk 0:02:18.7]} 11. Nc3
{[%clk 0:01:56.3]} 11... O-O {[%clk 0:02:12.8]} 12. Ne4 {[%clk 0:01:56.4]} 12...
Be7 {[%clk 0:02:12.8]} 13. g4 {[%clk 0:01:56.4]} 13... Rb8 {[%clk 0:01:58.4]}
14. h4 {[%clk 0:01:27.7]} 14... b5 {[%clk 0:01:54.5]} 15. Bd5 {[%clk 0:01:22.9]}
15... Bxg4 {[%clk 0:01:48.7]} 16. Bxf7+ {[%clk 0:01:18]} 16... Rxf7 {[%clk
0:01:45.7]} 17. Qxg4 {[%clk 0:01:18.1]} 17... Nb4 {[%clk 0:01:44.6]} 18. h5
{[%clk 0:01:06.5]} 18... g5 {[%clk 0:01:35]} 19. Kf1 {[%clk 0:01:01.2]} 19...
Qd5 {[%clk 0:01:22.6]} 20. Bc3 {[%clk 0:00:55.5]} 20... Nd3 {[%clk 0:01:18.1]}
21. h6 {[%clk 0:00:53.5]} 21... Nxf2 {[%clk 0:01:10.3]} 22. Nxf2 {[%clk
0:00:52.9]} 22... Qxh1+ {[%clk 0:01:08.5]} 23. Ke2 {[%clk 0:00:53.4]} 23... Qh2
{[%clk 0:00:58.3]} 24. Qg1 {[%clk 0:00:48.2]} 24... Qh5+ {[%clk 0:00:54.4]} 25.
Ng4 {[%clk 0:00:46.4]} 25... Rbf8 {[%clk 0:00:47.7]} 26. Re1 {[%clk 0:00:33.7]}
26... Bd6 {[%clk 0:00:29.4]} 27. Kd1 {[%clk 0:00:26.7]} 27... Qg6 {[%clk
0:00:25.8]} 28. Kc1 {[%clk 0:00:25.9]} 28... c4 {[%clk 0:00:25.3]} 29. Kb2
{[%clk 0:00:24.6]} 29... cxb3 {[%clk 0:00:25.1]} 30. axb3 {[%clk 0:00:23.6]}
30... b4 {[%clk 0:00:25.4]} 31. Bxe5 {[%clk 0:00:23.2]} 31... Qd3 {[%clk
0:00:18.2]} 32. Qg2 {[%clk 0:00:06.4]} 32... Rf2 {[%clk 0:00:13.5]} 33. Nxf2
{[%clk 0:00:05]} 33... Bxe5+ {[%clk 0:00:12.9]} 34. Kc1 {[%clk 0:00:03.9]} 34...
Rc8+ {[%clk 0:00:12.1]} 35. Kd1 {[%clk 0:00:04.4]} 35... Qxb3+ {[%clk
0:00:05.7]} 36. Ke2 {[%clk 0:00:04.9]} 36... Qc4+ {[%clk 0:00:06.1]} 37. d3
{[%clk 0:00:03.5]} 37... Qa2+ {[%clk 0:00:05.6]} 38. Kf1 {[%clk 0:00:04]} 38...
Bf6 {[%clk 0:00:05.4]} 39. Qb7 {[%clk 0:00:02.9]} 39... Rf8 {[%clk 0:00:05.3]}
40. Kg1 {[%clk 0:00:02]} 40... Bc3 {[%clk 0:00:05.3]} 41. Ne4 {[%clk 0:00:02.3]}
41... Qf7 {[%clk 0:00:04]} 42. Qxf7+ {[%clk 0:00:02.2]} 42... Kxf7 {[%clk
0:00:04.2]} 43. Nxc3 {[%clk 0:00:03.1]} 43... bxc3 {[%clk 0:00:04.6]} 44. Rc1
{[%clk 0:00:04]} 44... Rc8 {[%clk 0:00:04.7]} 45. Kf2 {[%clk 0:00:04.4]} 45...
a5 {[%clk 0:00:05.2]} 46. Rc2 {[%clk 0:00:04.3]} 46... a4 {[%clk 0:00:05.6]} 47.
Ke2 {[%clk 0:00:05.2]} 47... a3 {[%clk 0:00:05.5]} 48. Kd1 {[%clk 0:00:06.1]}
48... Kg6 {[%clk 0:00:04.7]} 49. Ra2 {[%clk 0:00:05.1]} 49... c2+ {[%clk
0:00:04.2]} 50. Rxc2 {[%clk 0:00:05.2]} 50... Rxc2 {[%clk 0:00:04.5]} 51. Kxc2
{[%clk 0:00:06.1]} 51... g4 {[%clk 0:00:05.2]} 52. d4 {[%clk 0:00:06]} 52... g3
{[%clk 0:00:05.7]} 53. d5 {[%clk 0:00:06.4]} 53... g2 {[%clk 0:00:05.9]} 54. d6
{[%clk 0:00:07.3]} 54... g1=Q {[%clk 0:00:05.3]} 0-1

[Event "Early-Titled-Tuesday-Blitz-June-18-2024"]
[Site "Chess.com"]
[Date "2024.06.18"]
[Round "7"]
[White "BlackBoarder"]
[Black "Hudijegszid"]
[Result "0-1"]
[WhiteElo "2709"]
[BlackElo "2529"]
[TimeControl "180+1"]
[EndTime "9:21:01 PDT"]
[Termination "Hudijegszid won by resignation"]

1. d4 {[%clk 0:03:00.9]} 1... d5 {[%clk 0:01:00.3]} 2. Nc3 {[%clk 0:02:48.6]}
2... Nf6 {[%clk 0:00:59]} 3. Bf4 {[%clk 0:02:48.7]} 3... c5 {[%clk 0:00:59.1]}
4. e4 {[%clk 0:02:48.4]} 4... cxd4 {[%clk 0:00:59.3]} 5. Qxd4 {[%clk 0:02:49.3]}
5... Nc6 {[%clk 0:00:59.8]} 6. Bb5 {[%clk 0:02:49.8]} 6... Bd7 {[%clk
0:01:00.2]} 7. Bxc6 {[%clk 0:02:50.1]} 7... Bxc6 {[%clk 0:01:01.1]} 8. e5 {[%clk
0:02:50.4]} 8... Nd7 {[%clk 0:01:01.6]} 9. e6 {[%clk 0:02:51.1]} 9... fxe6
{[%clk 0:01:02.3]} 10. Nf3 {[%clk 0:02:51.8]} 10... Qb6 {[%clk 0:01:02.7]} 11.
Qd2 {[%clk 0:02:52.3]} 11... d4 {[%clk 0:01:03.3]} 12. Nxd4 {[%clk 0:02:50.4]}
12... Bxg2 {[%clk 0:00:48.6]} 13. O-O-O {[%clk 0:02:36.2]} 13... Bxh1 {[%clk
0:00:46.1]} 14. Ndb5 {[%clk 0:02:34.4]} 14... Bc6 {[%clk 0:00:45]} 15. Nc7+
{[%clk 0:02:33.7]} 15... Kf7 {[%clk 0:00:44.6]} 16. Nxa8 {[%clk 0:02:32.6]}
16... Qa5 {[%clk 0:00:35.9]} 17. Bg3 {[%clk 0:02:06.8]} 17... g6 {[%clk
0:00:34.2]} 18. Nc7 {[%clk 0:02:03.6]} 18... Bg7 {[%clk 0:00:34.5]} 19. Qe3
{[%clk 0:01:51.4]} 19... e5 {[%clk 0:00:23.8]} 20. N7d5 {[%clk 0:01:46.5]} 20...
Rc8 {[%clk 0:00:22]} 21. f4 {[%clk 0:01:30.9]} 21... e6 {[%clk 0:00:20.7]} 22.
fxe5 {[%clk 0:01:28.4]} 22... exd5 {[%clk 0:00:15.3]} 23. e6+ {[%clk 0:01:28.4]}
23... Kg8 {[%clk 0:00:15.9]} 24. exd7 {[%clk 0:01:27.5]} 24... Bxd7 {[%clk
0:00:16.8]} 25. Rxd5 {[%clk 0:01:27]} 25... Rxc3 {[%clk 0:00:07.1]} 26. Qg5
{[%clk 0:00:48.6]} 26... Bh6 {[%clk 0:00:05]} 27. Rxa5 {[%clk 0:00:44.8]} 27...
Bxg5+ {[%clk 0:00:05.4]} 28. Rxg5 {[%clk 0:00:45.7]} 28... Rc6 {[%clk
0:00:05.8]} 29. Rd5 {[%clk 0:00:41.5]} 29... Bf5 {[%clk 0:00:05.9]} 30. c3
{[%clk 0:00:38.2]} 30... a6 {[%clk 0:00:05.7]} 31. Bf2 {[%clk 0:00:33.9]} 31...
Kf7 {[%clk 0:00:06.1]} 32. Bd4 {[%clk 0:00:34.2]} 32... Rc8 {[%clk 0:00:06.5]}
33. Rd6 {[%clk 0:00:33.2]} 33... Re8 {[%clk 0:00:06]} 34. Kd2 {[%clk 0:00:29.5]}
34... Re6 {[%clk 0:00:05.4]} 35. Rd7+ {[%clk 0:00:27.8]} 35... Re7 {[%clk
0:00:06.1]} 36. Rd8 {[%clk 0:00:28.2]} 36... Re8 {[%clk 0:00:06.8]} 37. Rd6
{[%clk 0:00:28.3]} 37... Re6 {[%clk 0:00:07]} 38. Rd5 {[%clk 0:00:28.6]} 38...
h5 {[%clk 0:00:06.8]} 39. c4 {[%clk 0:00:23.5]} 39... Re7 {[%clk 0:00:06.3]} 40.
b3 {[%clk 0:00:20.3]} 40... Rd7 {[%clk 0:00:06.7]} 41. Be5 {[%clk 0:00:14.6]}
41... Rxd5+ {[%clk 0:00:06.3]} 42. cxd5 {[%clk 0:00:15.5]} 42... Be4 {[%clk
0:00:06.9]} 43. d6 {[%clk 0:00:15.4]} 43... Ke6 {[%clk 0:00:07.5]} 44. Bg3
{[%clk 0:00:14.3]} 44... g5 {[%clk 0:00:07.7]} 45. Ke3 {[%clk 0:00:13]} 45...
Bc6 {[%clk 0:00:06.9]} 46. h3 {[%clk 0:00:10.3]} 46... h4 {[%clk 0:00:07.3]} 47.
Bh2 {[%clk 0:00:10.4]} 47... Bg2 {[%clk 0:00:08]} 48. Kd4 {[%clk 0:00:02.6]}
48... Bxh3 {[%clk 0:00:08.3]} 49. Kc5 {[%clk 0:00:03.1]} 49... Bg2 {[%clk
0:00:07.1]} 50. Kb6 {[%clk 0:00:01.5]} 50... Kd7 {[%clk 0:00:07.4]} 51. Be5
{[%clk 0:00:01.6]} 51... g4 {[%clk 0:00:07.1]} 52. Bf6 {[%clk 0:00:02.2]} 52...
h3 {[%clk 0:00:05.7]} 53. Be5 {[%clk 0:00:02.9]} 53... Bc6 {[%clk 0:00:05.9]}
54. Bg3 {[%clk 0:00:03.2]} 54... Ke6 {[%clk 0:00:06.3]} 55. Kc7 {[%clk
0:00:03.4]} 55... Kf5 {[%clk 0:00:06.7]} 56. d7 {[%clk 0:00:02.9]} 56... Bxd7
{[%clk 0:00:07.4]} 57. Kxd7 {[%clk 0:00:03.8]} 57... Ke4 {[%clk 0:00:08.2]} 58.
Kc7 {[%clk 0:00:04.5]} 58... Kf3 {[%clk 0:00:08.9]} 59. Bd6 {[%clk 0:00:03.3]}
59... g3 {[%clk 0:00:09.6]} 0-1

[Event "Early-Titled-Tuesday-Blitz-June-18-2024"]
[Site "Chess.com"]
[Date "2024.06.18"]
[Round "7"]
[White "blitzking1729"]
[Black "GHANDEEVAM2003"]
[Result "0-1"]
[WhiteElo "2824"]
[BlackElo "2997"]
[TimeControl "180+1"]
[EndTime "9:21:04 PDT"]
[Termination "GHANDEEVAM2003 won by resignation"]

1. e4 {[%clk 0:03:00.9]} 1... c6 {[%clk 0:02:58.8]} 2. d3 {[%clk 0:02:58.2]}
2... d5 {[%clk 0:02:58.5]} 3. Nd2 {[%clk 0:02:58.7]} 3... g6 {[%clk 0:02:57.9]}
4. Ngf3 {[%clk 0:02:58.7]} 4... Bg7 {[%clk 0:02:58.5]} 5. g3 {[%clk 0:02:59.1]}
5... Nf6 {[%clk 0:02:52.4]} 6. Bg2 {[%clk 0:02:57.2]} 6... O-O {[%clk
0:02:52.9]} 7. O-O {[%clk 0:02:56.7]} 7... a5 {[%clk 0:02:53.2]} 8. a4 {[%clk
0:02:55.8]} 8... Na6 {[%clk 0:02:52.2]} 9. e5 {[%clk 0:02:53.1]} 9... Nd7 {[%clk
0:02:51]} 10. Re1 {[%clk 0:02:52.6]} 10... Ndc5 {[%clk 0:02:51]} 11. d4 {[%clk
0:02:51.5]} 11... Ne6 {[%clk 0:02:49.9]} 12. c3 {[%clk 0:02:50.8]} 12... c5
{[%clk 0:02:48.4]} 13. Nb3 {[%clk 0:02:49]} 13... c4 {[%clk 0:02:44.2]} 14. Nbd2
{[%clk 0:02:48.6]} 14... Bd7 {[%clk 0:02:43.3]} 15. Nf1 {[%clk 0:02:47.1]} 15...
b5 {[%clk 0:02:38]} 16. Ne3 {[%clk 0:02:46.4]} 16... Nac7 {[%clk 0:02:34.1]} 17.
axb5 {[%clk 0:02:46.3]} 17... Bxb5 {[%clk 0:02:35]} 18. h4 {[%clk 0:02:46.1]}
18... h5 {[%clk 0:02:33.1]} 19. Ng5 {[%clk 0:02:42.1]} 19... Nxg5 {[%clk
0:02:16.7]} 20. hxg5 {[%clk 0:02:42.4]} 20... Qd7 {[%clk 0:02:17.2]} 21. f4
{[%clk 0:02:27.5]} 21... Ra6 {[%clk 0:02:17.7]} 22. Bf3 {[%clk 0:02:27]} 22...
a4 {[%clk 0:02:13.8]} 23. Kg2 {[%clk 0:02:26.4]} 23... Rb8 {[%clk 0:02:08.9]}
24. Rh1 {[%clk 0:02:25.9]} 24... a3 {[%clk 0:02:09.3]} 25. Rxa3 {[%clk
0:02:20.7]} 25... Rxa3 {[%clk 0:02:08.6]} 26. bxa3 {[%clk 0:02:21.6]} 26... Ba4
{[%clk 0:02:09.3]} 27. Qe1 {[%clk 0:02:21.7]} 27... Rb1 {[%clk 0:01:58.6]} 28.
g4 {[%clk 0:02:21]} 28... hxg4 {[%clk 0:01:59.5]} 29. Bxg4 {[%clk 0:02:20.5]}
29... Qb5 {[%clk 0:02:00.2]} 30. f5 {[%clk 0:02:18.5]} 30... gxf5 {[%clk
0:01:48.7]} 31. Nxf5 {[%clk 0:01:21.2]} 31... Bc2 {[%clk 0:01:48.3]} 32. Nxg7
{[%clk 0:01:12.9]} 32... Qb3 {[%clk 0:01:48.7]} 33. Bf3 {[%clk 0:00:51.7]} 33...
Rxc1 {[%clk 0:01:04.1]} 34. Qxc1 {[%clk 0:00:50.6]} 34... Kxg7 {[%clk
0:01:04.8]} 35. Qe1 {[%clk 0:00:31.3]} 35... e6 {[%clk 0:00:53.7]} 36. Qh4
{[%clk 0:00:26.8]} 36... Kf8 {[%clk 0:00:54.3]} 37. g6 {[%clk 0:00:27.1]} 37...
Qxc3 {[%clk 0:00:35.9]} 38. Qd8+ {[%clk 0:00:25.7]} 38... Ne8 {[%clk 0:00:35.8]}
39. Rh8+ {[%clk 0:00:11.6]} 39... Kg7 {[%clk 0:00:36.3]} 40. Rg8+ {[%clk
0:00:01.9]} 40... Kxg8 {[%clk 0:00:36.2]} 41. Qxe8+ {[%clk 0:00:02.6]} 41... Kg7
{[%clk 0:00:37.1]} 42. gxf7 {[%clk 0:00:02.6]} 42... Qd2+ {[%clk 0:00:35.9]} 43.
Kg3 {[%clk 0:00:03.1]} 43... Qe1+ {[%clk 0:00:25.5]} 44. Kg2 {[%clk 0:00:02.4]}
44... Qd2+ {[%clk 0:00:25.2]} 45. Kg3 {[%clk 0:00:02.8]} 45... Qg5+ {[%clk
0:00:16.5]} 46. Bg4 {[%clk 0:00:01.8]} 46... Qe3+ {[%clk 0:00:15.9]} 47. Bf3
{[%clk 0:00:02.1]} 47... Qg1+ {[%clk 0:00:10.7]} 48. Bg2 {[%clk 0:00:02.7]}
48... Qe1+ {[%clk 0:00:10.6]} 49. Kh2 {[%clk 0:00:01.7]} 49... Qh4+ {[%clk
0:00:10.4]} 50. Kg1 {[%clk 0:00:01.9]} 50... Qxd4+ {[%clk 0:00:10.5]} 51. Kh1
{[%clk 0:00:02.6]} 51... Qa1+ {[%clk 0:00:09.6]} 52. Kh2 {[%clk 0:00:02.6]}
52... Qxe5+ {[%clk 0:00:10.3]} 53. Kg1 {[%clk 0:00:03.2]} 53... Qe3+ {[%clk
0:00:07.6]} 54. Kh1 {[%clk 0:00:03]} 54... Qc1+ {[%clk 0:00:07.6]} 55. Kh2
{[%clk 0:00:02.3]} 55... Qf4+ {[%clk 0:00:08.2]} 0-1

[Event "Early-Titled-Tuesday-Blitz-June-18-2024"]
[Site "Chess.com"]
[Date "2024.06.18"]
[Round "7"]
[White "GMAkobianSTL"]
[Black "dropstoneDP"]
[Result "1-0"]
[WhiteElo "2858"]
[BlackElo "2974"]
[TimeControl "180+1"]
[EndTime "9:21:11 PDT"]
[Termination "GMAkobianSTL won by resignation"]

1. d4 {[%clk 0:03:00.9]} 1... d5 {[%clk 0:02:59.5]} 2. c4 {[%clk 0:03:00.7]}
2... dxc4 {[%clk 0:03:00.4]} 3. e3 {[%clk 0:03:00.2]} 3... Nf6 {[%clk
0:03:00.1]} 4. Bxc4 {[%clk 0:03:00.1]} 4... e6 {[%clk 0:02:58.5]} 5. Nf3 {[%clk
0:02:52.2]} 5... a6 {[%clk 0:02:58.6]} 6. O-O {[%clk 0:02:51.4]} 6... b5 {[%clk
0:02:59.1]} 7. Be2 {[%clk 0:02:44.4]} 7... Bb7 {[%clk 0:02:56.9]} 8. a4 {[%clk
0:02:44]} 8... Nbd7 {[%clk 0:02:56.1]} 9. axb5 {[%clk 0:02:41.2]} 9... axb5
{[%clk 0:02:56.5]} 10. Rxa8 {[%clk 0:02:40.1]} 10... Qxa8 {[%clk 0:02:57.4]} 11.
Bxb5 {[%clk 0:02:39.6]} 11... Be7 {[%clk 0:02:57.5]} 12. Nbd2 {[%clk 0:02:32.2]}
12... O-O {[%clk 0:02:55.5]} 13. b3 {[%clk 0:02:30.5]} 13... c5 {[%clk
0:02:19.2]} 14. Bb2 {[%clk 0:02:28.3]} 14... cxd4 {[%clk 0:02:19.5]} 15. Bxd4
{[%clk 0:02:26.9]} 15... Rd8 {[%clk 0:02:18.4]} 16. Qa1 {[%clk 0:02:25.5]} 16...
Qb8 {[%clk 0:02:14.2]} 17. Be2 {[%clk 0:02:23.1]} 17... Nc5 {[%clk 0:02:07.6]}
18. b4 {[%clk 0:02:13.8]} 18... Nce4 {[%clk 0:02:06.3]} 19. Nxe4 {[%clk
0:02:12.8]} 19... Bxe4 {[%clk 0:02:07.2]} 20. b5 {[%clk 0:02:09.1]} 20... Ng4
{[%clk 0:02:05.8]} 21. Ne5 {[%clk 0:01:48.3]} 21... Nxe5 {[%clk 0:01:32.1]} 22.
Bxe5 {[%clk 0:01:46.4]} 22... Qb7 {[%clk 0:01:32.6]} 23. f3 {[%clk 0:01:26.8]}
23... f6 {[%clk 0:01:18.6]} 24. fxe4 {[%clk 0:01:06.5]} 24... fxe5 {[%clk
0:01:18.1]} 25. Qxe5 {[%clk 0:01:05.4]} 25... Qb6 {[%clk 0:01:16.8]} 26. Bc4
{[%clk 0:00:53.7]} 26... Bc5 {[%clk 0:00:54.7]} 27. Qxe6+ {[%clk 0:00:43.4]}
27... Qxe6 {[%clk 0:00:54.9]} 28. Bxe6+ {[%clk 0:00:43.3]} 28... Kh8 {[%clk
0:00:55.2]} 29. Kf2 {[%clk 0:00:24.6]} 29... Rd2+ {[%clk 0:00:48.1]} 30. Kf3
{[%clk 0:00:24.4]} 30... Rd3 {[%clk 0:00:40.1]} 31. Re1 {[%clk 0:00:21.7]} 31...
g6 {[%clk 0:00:32.4]} 32. e5 {[%clk 0:00:21.1]} 32... Kg7 {[%clk 0:00:32.7]} 33.
Ke4 {[%clk 0:00:21.2]} 33... Rc3 {[%clk 0:00:29.6]} 34. Bd5 {[%clk 0:00:17.1]}
34... Rc2 {[%clk 0:00:26]} 35. Kd3 {[%clk 0:00:11]} 35... Rb2 {[%clk 0:00:24.8]}
36. Kc4 {[%clk 0:00:10.9]} 36... Bb6 {[%clk 0:00:24.7]} 37. e6 {[%clk 0:00:10]}
37... Rc2+ {[%clk 0:00:22.8]} 38. Kd3 {[%clk 0:00:09.3]} 38... Rc5 {[%clk
0:00:21.4]} 39. Bc4 {[%clk 0:00:09.5]} 39... Re5 {[%clk 0:00:18.9]} 40. e4
{[%clk 0:00:09.7]} 40... Bc5 {[%clk 0:00:17.3]} 41. Bd5 {[%clk 0:00:09.6]} 41...
Rh5 {[%clk 0:00:17.3]} 42. h3 {[%clk 0:00:09.1]} 42... Rg5 {[%clk 0:00:18]} 43.
Re2 {[%clk 0:00:08.9]} 43... Rg3+ {[%clk 0:00:18]} 44. Kc4 {[%clk 0:00:09.1]}
44... Bd6 {[%clk 0:00:14.6]} 45. b6 {[%clk 0:00:08.8]} 45... Be5 {[%clk
0:00:14.9]} 46. b7 {[%clk 0:00:08.3]} 46... Rc3+ {[%clk 0:00:15.2]} 47. Kb4
{[%clk 0:00:08.7]} 47... Rc1 {[%clk 0:00:12.8]} 48. e7 {[%clk 0:00:07.1]} 48...
Bd6+ {[%clk 0:00:12.7]} 49. Ka5 {[%clk 0:00:06.7]} 49... Ra1+ {[%clk 0:00:12.4]}
50. Kb6 {[%clk 0:00:06.5]} 50... Rb1+ {[%clk 0:00:11.1]} 51. Kc6 {[%clk
0:00:06.6]} 51... Bxe7 {[%clk 0:00:11.5]} 52. e5 {[%clk 0:00:06.2]} 52... Bd8
{[%clk 0:00:05.5]} 53. Re3 {[%clk 0:00:06.4]} 53... Rc1+ {[%clk 0:00:04.8]} 54.
Kd7 {[%clk 0:00:06.2]} 54... Bc7 {[%clk 0:00:05]} 55. e6 {[%clk 0:00:05.2]}
55... Bb8 {[%clk 0:00:05.5]} 56. e7 {[%clk 0:00:05.4]} 56... Rc7+ {[%clk
0:00:05.1]} 57. Kd8 {[%clk 0:00:05.3]} 57... Rc5 {[%clk 0:00:04.7]} 58. e8=Q
{[%clk 0:00:05]} 1-0

[Event "Early-Titled-Tuesday-Blitz-June-18-2024"]
[Site "Chess.com"]
[Date "2024.06.18"]
[Round "7"]
[White "ManMish2"]
[Black "Eagle_2019"]
[Result "1-0"]
[WhiteElo "2660"]
[BlackElo "2834"]
[TimeControl "180+1"]
[EndTime "9:21:15 PDT"]
[Termination "ManMish2 won on time"]

1. e4 {[%clk 0:03:00.9]} 1... Nc6 {[%clk 0:02:58.8]} 2. Nf3 {[%clk 0:02:59.7]}
2... d6 {[%clk 0:02:57.3]} 3. d4 {[%clk 0:02:59.3]} 3... Nf6 {[%clk 0:02:56.6]}
4. d5 {[%clk 0:02:58.6]} 4... Ne5 {[%clk 0:02:47.9]} 5. Nxe5 {[%clk 0:02:58.5]}
5... dxe5 {[%clk 0:02:48.8]} 6. Nc3 {[%clk 0:02:58.2]} 6... e6 {[%clk
0:02:46.9]} 7. Bb5+ {[%clk 0:02:49.5]} 7... Bd7 {[%clk 0:02:40.5]} 8. dxe6
{[%clk 0:02:48.1]} 8... fxe6 {[%clk 0:02:33.9]} 9. Bd3 {[%clk 0:02:44.3]} 9...
Bc5 {[%clk 0:02:29.3]} 10. O-O {[%clk 0:02:43]} 10... O-O {[%clk 0:02:29]} 11.
Qe2 {[%clk 0:02:40]} 11... a6 {[%clk 0:02:26.4]} 12. Be3 {[%clk 0:02:39.2]}
12... Bd4 {[%clk 0:02:24.8]} 13. Rad1 {[%clk 0:02:34.7]} 13... Qe8 {[%clk
0:02:18.2]} 14. Nb1 {[%clk 0:02:24.5]} 14... Bc6 {[%clk 0:02:13]} 15. c3 {[%clk
0:02:22.7]} 15... Bxe3 {[%clk 0:02:11.1]} 16. Qxe3 {[%clk 0:02:22.5]} 16... Rd8
{[%clk 0:02:10.1]} 17. Nd2 {[%clk 0:02:17.7]} 17... Qg6 {[%clk 0:02:07.2]} 18.
f3 {[%clk 0:02:08.8]} 18... Nh5 {[%clk 0:01:58.6]} 19. Nc4 {[%clk 0:01:51.6]}
19... Nf4 {[%clk 0:01:54.6]} 20. g3 {[%clk 0:01:51.1]} 20... Nh3+ {[%clk
0:01:38.5]} 21. Kh1 {[%clk 0:01:46.4]} 21... Qf6 {[%clk 0:01:36.9]} 22. Na5
{[%clk 0:01:31.9]} 22... Rd6 {[%clk 0:01:27.7]} 23. Be2 {[%clk 0:01:25.1]} 23...
Rxd1 {[%clk 0:01:08.7]} 24. Rxd1 {[%clk 0:01:24.4]} 24... Bxe4 {[%clk
0:01:08.1]} 25. Kg2 {[%clk 0:01:14.9]} 25... Bf5 {[%clk 0:01:03.3]} 26. Nxb7
{[%clk 0:01:09.6]} 26... g5 {[%clk 0:00:45.1]} 27. Nc5 {[%clk 0:01:08.3]} 27...
Qg7 {[%clk 0:00:44.3]} 28. Rd7 {[%clk 0:01:05.2]} 28... Qg6 {[%clk 0:00:41]} 29.
Bc4 {[%clk 0:00:40]} 29... Nf4+ {[%clk 0:00:38.5]} 30. Kg1 {[%clk 0:00:34.7]}
30... Bh3 {[%clk 0:00:34.8]} 31. Qxe5 {[%clk 0:00:32.2]} 31... Qb1+ {[%clk
0:00:25.8]} 32. Kf2 {[%clk 0:00:31.2]} 32... Qxb2+ {[%clk 0:00:05.5]} 33. Be2
{[%clk 0:00:30.7]} 33... Qxe2+ {[%clk 0:00:03.3]} 34. Qxe2 {[%clk 0:00:30.7]}
34... Nxe2 {[%clk 0:00:04.2]} 35. Kxe2 {[%clk 0:00:31]} 35... Bg2 {[%clk
0:00:04.4]} 36. Nxe6 {[%clk 0:00:29]} 36... Bxf3+ {[%clk 0:00:04.1]} 37. Ke3
{[%clk 0:00:26.8]} 37... Rf5 {[%clk 0:00:03.9]} 38. Rg7+ {[%clk 0:00:24.7]}
38... Kh8 {[%clk 0:00:04]} 39. Rxg5 {[%clk 0:00:20.9]} 39... Rf6 {[%clk
0:00:04.2]} 40. Nf4 {[%clk 0:00:18.1]} 40... Bb7 {[%clk 0:00:04.1]} 41. Rc5
{[%clk 0:00:17.9]} 41... Rf7 {[%clk 0:00:04.1]} 42. c4 {[%clk 0:00:15.3]} 42...
Re7+ {[%clk 0:00:04.3]} 43. Kd4 {[%clk 0:00:15.6]} 43... Rd7+ {[%clk 0:00:04.6]}
44. Kc3 {[%clk 0:00:15.7]} 44... c6 {[%clk 0:00:04.3]} 45. Re5 {[%clk
0:00:15.5]} 45... Kg7 {[%clk 0:00:04]} 46. c5 {[%clk 0:00:15.5]} 46... Kf6
{[%clk 0:00:04.2]} 47. Re6+ {[%clk 0:00:15.4]} 47... Kf5 {[%clk 0:00:04.5]} 48.
Rh6 {[%clk 0:00:14.6]} 48... Ke4 {[%clk 0:00:04.9]} 49. Kb4 {[%clk 0:00:13.5]}
49... Rd2 {[%clk 0:00:04]} 50. a4 {[%clk 0:00:11.2]} 50... a5+ {[%clk
0:00:02.8]} 51. Kxa5 {[%clk 0:00:11]} 51... Rb2 {[%clk 0:00:03]} 52. Rd6 {[%clk
0:00:10.6]} 52... Ke5 {[%clk 0:00:02.6]} 53. Nd3+ {[%clk 0:00:10.3]} 53... Ke4
{[%clk 0:00:02.7]} 54. Nxb2 {[%clk 0:00:11.2]} 1-0